[Event "*** Titled Tuesday Blitz"]
[Site "Chess.com"]
[Date "2021.03.09"]
[Round "2"]
[White "FredyMatsuura"]
[Black "Politov_Pavel"]
[Result "1/2-1/2"]
[WhiteElo "2195"]
[BlackElo "2419"]
[TimeControl "180+1"]
[EndTime "10:19:58 PST"]
[Termination "Game drawn by repetition"]

1. d4 {[%clk 0:03:00.9]} 1... Nf6 {[%clk 0:02:35.4]} 2. c4 {[%clk 0:02:59.2]}
2... e6 {[%clk 0:02:33.7]} 3. Nf3 {[%clk 0:02:59.1]} 3... d5 {[%clk 0:02:34.1]}
4. Nc3 {[%clk 0:02:58.5]} 4... c5 {[%clk 0:02:33.7]} 5. cxd5 {[%clk 0:02:57.5]}
5... Nxd5 {[%clk 0:02:34.6]} 6. e3 {[%clk 0:02:56]} 6... Nc6 {[%clk 0:02:30.9]}
7. Bd3 {[%clk 0:02:55.7]} 7... cxd4 {[%clk 0:02:27.5]} 8. exd4 {[%clk
0:02:55.1]} 8... Be7 {[%clk 0:02:21.2]} 9. O-O {[%clk 0:02:54.6]} 9... O-O
{[%clk 0:02:21.8]} 10. a3 {[%clk 0:02:49.7]} 10... a6 {[%clk 0:02:21.6]} 11. Qe2
{[%clk 0:02:28]} 11... b5 {[%clk 0:02:20.8]} 12. Qe4 {[%clk 0:02:16.8]} 12... f5
{[%clk 0:02:18.5]} 13. Qe2 {[%clk 0:02:14.7]} 13... Na5 {[%clk 0:02:13.8]} 14.
Re1 {[%clk 0:01:52.9]} 14... Nb3 {[%clk 0:02:02.1]} 15. Rb1 {[%clk 0:01:52.2]}
15... Bf6 {[%clk 0:02:02.2]} 16. Be3 {[%clk 0:01:37]} 16... Re8 {[%clk
0:01:44.5]} 17. Rbd1 {[%clk 0:01:34.4]} 17... Bb7 {[%clk 0:01:37.4]} 18. Bc2
{[%clk 0:01:30]} 18... Na5 {[%clk 0:01:35.2]} 19. Ne5 {[%clk 0:01:22.4]} 19...
Nxc3 {[%clk 0:01:22.6]} 20. bxc3 {[%clk 0:01:21.7]} 20... Qd5 {[%clk 0:01:22.7]}
21. f3 {[%clk 0:01:19.3]} 21... Bxe5 {[%clk 0:01:18.8]} 22. dxe5 {[%clk
0:01:18.3]} 22... Qxe5 {[%clk 0:01:19.7]} 23. Bd4 {[%clk 0:01:10]} 23... Qxe2
{[%clk 0:01:18.6]} 24. Rxe2 {[%clk 0:01:10.5]} 24... Nc4 {[%clk 0:01:17.4]} 25.
Bb3 {[%clk 0:01:10.9]} 25... Bd5 {[%clk 0:01:16.2]} 26. Bxc4 {[%clk 0:01:04]}
26... bxc4 {[%clk 0:01:11.8]} 27. Rb1 {[%clk 0:00:58.9]} 27... Rab8 {[%clk
0:01:11.3]} 28. Reb2 {[%clk 0:00:57.8]} 28... Rxb2 {[%clk 0:01:08.4]} 29. Rxb2
{[%clk 0:00:57.8]} 29... Re7 {[%clk 0:01:08.6]} 30. f4 {[%clk 0:00:57.2]} 30...
Kf7 {[%clk 0:01:03.4]} 31. Rb6 {[%clk 0:00:55.6]} 31... Rb7 {[%clk 0:01:01.1]}
32. Rxb7+ {[%clk 0:00:55.1]} 32... Bxb7 {[%clk 0:01:02]} 33. a4 {[%clk
0:00:49.3]} 33... g5 {[%clk 0:00:56.2]} 34. fxg5 {[%clk 0:00:47.6]} 34... Kg6
{[%clk 0:00:56.3]} 35. h4 {[%clk 0:00:45.3]} 35... Kh5 {[%clk 0:00:56]} 36. g3
{[%clk 0:00:45.3]} 36... Kg4 {[%clk 0:00:53.5]} 37. Kf2 {[%clk 0:00:44.8]} 37...
a5 {[%clk 0:00:46.6]} 38. Be5 {[%clk 0:00:43.7]} 38... Bc6 {[%clk 0:00:46.4]}
39. Ke3 {[%clk 0:00:43.1]} 39... Bxa4 {[%clk 0:00:45.9]} 40. Bc7 {[%clk
0:00:41.9]} 40... Bc6 {[%clk 0:00:46]} 41. Bxa5 {[%clk 0:00:38.3]} 41... Kxg3
{[%clk 0:00:42.5]} 42. h5 {[%clk 0:00:38.5]} 42... Be8 {[%clk 0:00:33]} 43. g6
{[%clk 0:00:37.4]} 43... f4+ {[%clk 0:00:22.5]} 44. Kd2 {[%clk 0:00:36.8]} 44...
h6 {[%clk 0:00:20.2]} 45. Ke2 {[%clk 0:00:25.5]} 45... f3+ {[%clk 0:00:17.8]}
46. Kf1 {[%clk 0:00:21]} 46... e5 {[%clk 0:00:18]} 47. Bb6 {[%clk 0:00:20.5]}
47... Kf4 {[%clk 0:00:16.9]} 48. Kf2 {[%clk 0:00:19.1]} 48... e4 {[%clk
0:00:16.1]} 49. Be3+ {[%clk 0:00:18.2]} 49... Kg4 {[%clk 0:00:16.5]} 50. g7
{[%clk 0:00:16.6]} 50... Bf7 {[%clk 0:00:15.3]} 51. Bxh6 {[%clk 0:00:17]} 51...
Kxh5 {[%clk 0:00:15.8]} 52. Be3 {[%clk 0:00:17.2]} 52... Kg6 {[%clk 0:00:14.7]}
53. Bd4 {[%clk 0:00:17.5]} 53... Bd5 {[%clk 0:00:13.9]} 54. Ke3 {[%clk
0:00:18.2]} 54... Kf5 {[%clk 0:00:14.1]} 55. Kf2 {[%clk 0:00:18.8]} 55... Kf4
{[%clk 0:00:14.4]} 56. Be3+ {[%clk 0:00:19.1]} 56... Kg4 {[%clk 0:00:14.8]} 57.
Bd4 {[%clk 0:00:19.8]} 57... Kg5 {[%clk 0:00:11.8]} 58. Be3+ {[%clk 0:00:20.2]}
58... Kg6 {[%clk 0:00:12]} 59. Bd4 {[%clk 0:00:20.8]} 59... Kh7 {[%clk 0:00:12]}
60. Ke3 {[%clk 0:00:21.4]} 60... Bc6 {[%clk 0:00:11.8]} 61. Kf2 {[%clk
0:00:21.7]} 61... Ba4 {[%clk 0:00:11.9]} 62. Ke3 {[%clk 0:00:22.1]} 62... Bc2
{[%clk 0:00:12.8]} 63. Kf2 {[%clk 0:00:22.7]} 63... Bd3 {[%clk 0:00:13.7]} 64.
Ke3 {[%clk 0:00:23.3]} 64... Kg8 {[%clk 0:00:13.9]} 65. Kf2 {[%clk 0:00:23.7]}
65... Kh7 {[%clk 0:00:14.8]} 66. Ke3 {[%clk 0:00:24.4]} 66... Kg8 {[%clk
0:00:15.7]} 67. Kf2 {[%clk 0:00:25]} 67... Kh7 {[%clk 0:00:15.1]} 1/2-1/2

[Event "*** Titled Tuesday Blitz"]
[Site "Chess.com"]
[Date "2021.03.09"]
[Round "2"]
[White "Grineva_Marianna"]
[Black "googlegoom"]
[Result "1/2-1/2"]
[WhiteElo "2278"]
[BlackElo "2473"]
[TimeControl "180+1"]
[EndTime "10:19:59 PST"]
[Termination "Game drawn - insufficient material"]

1. e4 {[%clk 0:02:56.7]} 1... c5 {[%clk 0:02:59.8]} 2. Nf3 {[%clk 0:02:56.6]}
2... Nc6 {[%clk 0:03:00]} 3. d4 {[%clk 0:02:57.1]} 3... cxd4 {[%clk 0:03:00.9]}
4. Nxd4 {[%clk 0:02:57.2]} 4... Qb6 {[%clk 0:03:01.8]} 5. Nb3 {[%clk 0:02:56.4]}
5... Nf6 {[%clk 0:03:02.3]} 6. Nc3 {[%clk 0:02:56.5]} 6... e6 {[%clk 0:03:02.5]}
7. Be3 {[%clk 0:02:56.9]} 7... Qc7 {[%clk 0:03:02.4]} 8. f4 {[%clk 0:02:53.9]}
8... d6 {[%clk 0:03:00.9]} 9. Bd3 {[%clk 0:02:52.4]} 9... a6 {[%clk 0:03:00.6]}
10. Qe2 {[%clk 0:02:48.6]} 10... b5 {[%clk 0:03:00.9]} 11. O-O-O {[%clk
0:02:48]} 11... Bb7 {[%clk 0:02:46.1]} 12. g4 {[%clk 0:02:45.3]} 12... Rc8
{[%clk 0:02:39.3]} 13. g5 {[%clk 0:02:45.2]} 13... Nd7 {[%clk 0:02:39.2]} 14.
Rhe1 {[%clk 0:02:39.1]} 14... Na5 {[%clk 0:02:30.4]} 15. Kb1 {[%clk 0:02:17.8]}
15... Nc4 {[%clk 0:02:28.5]} 16. Bxc4 {[%clk 0:02:09.6]} 16... Qxc4 {[%clk
0:02:27.1]} 17. Qd3 {[%clk 0:01:59.8]} 17... b4 {[%clk 0:02:04.6]} 18. Na5
{[%clk 0:01:45.5]} 18... Qxd3 {[%clk 0:01:57]} 19. Rxd3 {[%clk 0:01:46.4]} 19...
bxc3 {[%clk 0:01:47.3]} 20. Nxb7 {[%clk 0:01:43.6]} 20... Rb8 {[%clk 0:01:36.6]}
21. Nxd6+ {[%clk 0:01:39.8]} 21... Bxd6 {[%clk 0:01:36.2]} 22. Rxd6 {[%clk
0:01:40.7]} 22... Rxb2+ {[%clk 0:01:36.3]} 23. Ka1 {[%clk 0:01:36]} 23... Nb8
{[%clk 0:01:07]} 24. Red1 {[%clk 0:01:16.7]} 24... O-O {[%clk 0:01:06.2]} 25.
Bc5 {[%clk 0:01:07.5]} 25... h6 {[%clk 0:00:55.8]} 26. R6d3 {[%clk 0:00:52.3]}
26... Rc8 {[%clk 0:00:29.9]} 27. Rxc3 {[%clk 0:00:47.3]} 27... Rb5 {[%clk
0:00:27]} 28. Bd4 {[%clk 0:00:42.1]} 28... Rxc3 {[%clk 0:00:25.8]} 29. Bxc3
{[%clk 0:00:43]} 29... hxg5 {[%clk 0:00:26.1]} 30. fxg5 {[%clk 0:00:41]} 30...
Kh7 {[%clk 0:00:26.2]} 31. h4 {[%clk 0:00:36.8]} 31... Kg6 {[%clk 0:00:25.5]}
32. a4 {[%clk 0:00:32.5]} 32... Rc5 {[%clk 0:00:24.6]} 33. Kb2 {[%clk
0:00:30.8]} 33... Nc6 {[%clk 0:00:25.1]} 34. Rd7 {[%clk 0:00:29.5]} 34... Rc4
{[%clk 0:00:19.9]} 35. Rc7 {[%clk 0:00:25.2]} 35... f6 {[%clk 0:00:14.3]} 36. a5
{[%clk 0:00:20.5]} 36... fxg5 {[%clk 0:00:11.1]} 37. Rxg7+ {[%clk 0:00:18.9]}
37... Kh5 {[%clk 0:00:11.7]} 38. hxg5 {[%clk 0:00:17.1]} 38... e5 {[%clk
0:00:10.3]} 39. g6 {[%clk 0:00:16.7]} 39... Kh6 {[%clk 0:00:09.8]} 40. Rc7
{[%clk 0:00:15.8]} 40... Kxg6 {[%clk 0:00:09.4]} 41. Kb3 {[%clk 0:00:16.2]}
41... Rc5 {[%clk 0:00:07.7]} 42. Rb7 {[%clk 0:00:11.7]} 42... Nxa5+ {[%clk
0:00:05.9]} 43. Bxa5 {[%clk 0:00:12.6]} 43... Rxa5 {[%clk 0:00:06.5]} 44. Rb6+
{[%clk 0:00:13]} 44... Kg5 {[%clk 0:00:06.5]} 45. Kb4 {[%clk 0:00:11.3]} 45...
Ra2 {[%clk 0:00:06.1]} 46. c4 {[%clk 0:00:10.3]} 46... Kf4 {[%clk 0:00:06.6]}
47. Kc5 {[%clk 0:00:10.1]} 47... Kxe4 {[%clk 0:00:06.8]} 48. Kc6 {[%clk
0:00:09]} 48... a5 {[%clk 0:00:07.3]} 49. c5 {[%clk 0:00:09.5]} 49... a4 {[%clk
0:00:08]} 50. Rb4+ {[%clk 0:00:09.7]} 50... Kd3 {[%clk 0:00:07.6]} 51. Kd7
{[%clk 0:00:09.4]} 51... e4 {[%clk 0:00:07.9]} 52. c6 {[%clk 0:00:09.4]} 52...
Rc2 {[%clk 0:00:08.3]} 53. Rxa4 {[%clk 0:00:07.7]} 53... e3 {[%clk 0:00:08.9]}
54. Ra8 {[%clk 0:00:06.9]} 54... e2 {[%clk 0:00:09.2]} 55. Re8 {[%clk
0:00:07.4]} 55... Kd2 {[%clk 0:00:08.5]} 56. c7 {[%clk 0:00:07.6]} 56... e1=Q
{[%clk 0:00:08.4]} 57. Rxe1 {[%clk 0:00:06.7]} 57... Kxe1 {[%clk 0:00:09.3]} 58.
c8=Q {[%clk 0:00:06.7]} 58... Rxc8 {[%clk 0:00:10.2]} 59. Kxc8 {[%clk
0:00:05.9]} 1/2-1/2

[Event "*** Titled Tuesday Blitz"]
[Site "Chess.com"]
[Date "2021.03.09"]
[Round "2"]
[White "FoggyMorning"]
[Black "ChrisTool2"]
[Result "0-1"]
[WhiteElo "2607"]
[BlackElo "2343"]
[TimeControl "180+1"]
[EndTime "10:20:00 PST"]
[Termination "ChrisTool2 won by resignation"]

1. e4 {[%clk 0:02:58.2]} 1... c5 {[%clk 0:02:59.5]} 2. Nf3 {[%clk 0:02:58.4]}
2... e6 {[%clk 0:02:58.6]} 3. d4 {[%clk 0:02:59]} 3... cxd4 {[%clk 0:02:59.2]}
4. Nxd4 {[%clk 0:02:59.9]} 4... a6 {[%clk 0:02:59.6]} 5. Nc3 {[%clk 0:03:00.5]}
5... Qc7 {[%clk 0:03:00.1]} 6. g3 {[%clk 0:03:00.9]} 6... d6 {[%clk 0:02:56.2]}
7. Bg2 {[%clk 0:03:01.1]} 7... Nc6 {[%clk 0:02:55.9]} 8. O-O {[%clk 0:03:01.7]}
8... Nge7 {[%clk 0:02:53.3]} 9. Nb3 {[%clk 0:02:46.6]} 9... g6 {[%clk
0:02:53.3]} 10. f4 {[%clk 0:02:38.8]} 10... Bg7 {[%clk 0:02:53.3]} 11. Be3
{[%clk 0:02:38.6]} 11... O-O {[%clk 0:02:53.7]} 12. Qe2 {[%clk 0:02:25.6]} 12...
b5 {[%clk 0:02:53.5]} 13. a3 {[%clk 0:02:25.4]} 13... Bb7 {[%clk 0:02:53.3]} 14.
Rad1 {[%clk 0:02:25.2]} 14... Rac8 {[%clk 0:02:52.1]} 15. f5 {[%clk 0:02:06.3]}
15... gxf5 {[%clk 0:02:43]} 16. exf5 {[%clk 0:02:07.2]} 16... Nxf5 {[%clk
0:02:42.9]} 17. Rxf5 {[%clk 0:02:06.7]} 17... exf5 {[%clk 0:02:43]} 18. Nd5
{[%clk 0:02:07.4]} 18... Qd8 {[%clk 0:02:40.7]} 19. Qh5 {[%clk 0:01:48.7]} 19...
Re8 {[%clk 0:02:24.3]} 20. Bg5 {[%clk 0:01:33.2]} 20... f6 {[%clk 0:02:18.1]}
21. Bh6 {[%clk 0:01:18.6]} 21... Ne5 {[%clk 0:02:13.1]} 22. Bxg7 {[%clk
0:01:13.9]} 22... Kxg7 {[%clk 0:02:14]} 23. Qxf5 {[%clk 0:01:13.4]} 23... Bxd5
{[%clk 0:01:56.8]} 24. Bxd5 {[%clk 0:01:14.3]} 24... Qd7 {[%clk 0:01:55.4]} 25.
Qf2 {[%clk 0:01:06.2]} 25... Ng4 {[%clk 0:01:48]} 26. Qf3 {[%clk 0:00:52.5]}
26... Rxc2 {[%clk 0:01:35.2]} 27. Nd4 {[%clk 0:00:50.1]} 27... Rf2 {[%clk
0:01:23.7]} 28. Ne6+ {[%clk 0:00:36.7]} 28... Qxe6 {[%clk 0:01:18.6]} 29. Bxe6
{[%clk 0:00:34.4]} 29... Rxf3 {[%clk 0:01:15.7]} 30. Bxg4 {[%clk 0:00:35.1]}
30... Rb3 {[%clk 0:01:13.1]} 31. Rd2 {[%clk 0:00:33.6]} 31... Re1+ {[%clk
0:01:06.3]} 32. Kg2 {[%clk 0:00:28.4]} 32... Rb1 {[%clk 0:01:07.2]} 33. Rxd6
{[%clk 0:00:28.2]} 33... R1xb2+ {[%clk 0:01:05.3]} 34. Kh3 {[%clk 0:00:28.8]}
34... Rxa3 {[%clk 0:01:04.1]} 35. Bf5 {[%clk 0:00:27.6]} 35... Raa2 {[%clk
0:00:51.4]} 36. Rd7+ {[%clk 0:00:25]} 36... Kf8 {[%clk 0:00:51.9]} 37. Kg4
{[%clk 0:00:22.4]} 37... Rxh2 {[%clk 0:00:49.8]} 38. Be6 {[%clk 0:00:19]} 38...
Ra4+ {[%clk 0:00:48.2]} 39. Kf3 {[%clk 0:00:15.1]} 39... a5 {[%clk 0:00:34.6]}
40. Bd5 {[%clk 0:00:15]} 40... Rd2 {[%clk 0:00:31]} 41. Ke3 {[%clk 0:00:15.4]}
41... Rad4 {[%clk 0:00:29.4]} 42. Rf7+ {[%clk 0:00:13.8]} 42... Ke8 {[%clk
0:00:18.3]} 43. Be6 {[%clk 0:00:14.7]} 43... R4d3+ {[%clk 0:00:16.6]} 44. Ke4
{[%clk 0:00:14.6]} 44... Rxg3 {[%clk 0:00:12.7]} 45. Rxh7 {[%clk 0:00:13.8]}
45... Re2+ {[%clk 0:00:12.4]} 46. Kd5 {[%clk 0:00:11.3]} 46... Rd3+ {[%clk
0:00:12.1]} 47. Kc6 {[%clk 0:00:11.2]} 47... Rxe6+ {[%clk 0:00:12.1]} 48. Kxb5
{[%clk 0:00:12.1]} 48... Rd5+ {[%clk 0:00:11.5]} 49. Kc4 {[%clk 0:00:12.4]}
49... Rde5 {[%clk 0:00:11.6]} 50. Rh8+ {[%clk 0:00:12.8]} 50... Kd7 {[%clk
0:00:12]} 51. Rh7+ {[%clk 0:00:13.7]} 51... Kc6 {[%clk 0:00:12.5]} 52. Ra7
{[%clk 0:00:14.6]} 52... Re4+ {[%clk 0:00:12.1]} 53. Kd3 {[%clk 0:00:15.1]}
53... R6e5 {[%clk 0:00:12.5]} 54. Ra6+ {[%clk 0:00:15.1]} 54... Kd5 {[%clk
0:00:12.8]} 55. Rxf6 {[%clk 0:00:16]} 55... Re3+ {[%clk 0:00:12.6]} 56. Kd2
{[%clk 0:00:16.2]} 56... Re2+ {[%clk 0:00:13.2]} 57. Kd1 {[%clk 0:00:14]} 57...
Rh2 {[%clk 0:00:13.8]} 58. Ra6 {[%clk 0:00:12.6]} 58... Kc4 {[%clk 0:00:13]} 59.
Rc6+ {[%clk 0:00:12.1]} 59... Kb5 {[%clk 0:00:12.6]} 60. Rc8 {[%clk 0:00:10.8]}
60... Rg5 {[%clk 0:00:12]} 61. Rb8+ {[%clk 0:00:11.1]} 61... Ka4 {[%clk
0:00:10.7]} 0-1

[Event "*** Titled Tuesday Blitz"]
[Site "Chess.com"]
[Date "2021.03.09"]
[Round "2"]
[White "ri4mi"]
[Black "jordanasoul"]
[Result "1-0"]
[WhiteElo "2418"]
[BlackElo "2165"]
[TimeControl "180+1"]
[EndTime "10:20:01 PST"]
[Termination "ri4mi won by resignation"]

1. d4 {[%clk 0:03:00.9]} 1... Nf6 {[%clk 0:02:57.2]} 2. Nc3 {[%clk 0:03:01.2]}
2... c5 {[%clk 0:02:52.3]} 3. d5 {[%clk 0:03:00.8]} 3... e6 {[%clk 0:02:46.4]}
4. e4 {[%clk 0:03:01]} 4... exd5 {[%clk 0:02:46]} 5. exd5 {[%clk 0:03:01.9]}
5... d6 {[%clk 0:02:46.3]} 6. Nf3 {[%clk 0:03:02.2]} 6... Be7 {[%clk 0:02:44.6]}
7. Be2 {[%clk 0:03:02.6]} 7... O-O {[%clk 0:02:44.7]} 8. O-O {[%clk 0:03:03.1]}
8... a6 {[%clk 0:02:43.4]} 9. a4 {[%clk 0:03:03.5]} 9... Bg4 {[%clk 0:02:38]}
10. h3 {[%clk 0:02:54.8]} 10... Bxf3 {[%clk 0:02:36.3]} 11. Bxf3 {[%clk
0:02:55.7]} 11... Nbd7 {[%clk 0:02:36.6]} 12. Bf4 {[%clk 0:02:54.8]} 12... Re8
{[%clk 0:02:33.1]} 13. Re1 {[%clk 0:02:54.7]} 13... Bf8 {[%clk 0:02:32.9]} 14.
g4 {[%clk 0:02:26.5]} 14... h6 {[%clk 0:02:05.7]} 15. Bg2 {[%clk 0:02:24.5]}
15... Nh7 {[%clk 0:01:56]} 16. Qd2 {[%clk 0:02:16]} 16... Qf6 {[%clk 0:01:51.9]}
17. Ne4 {[%clk 0:01:58.4]} 17... Qg6 {[%clk 0:01:51.7]} 18. Re2 {[%clk
0:01:26.9]} 18... f5 {[%clk 0:01:50.6]} 19. gxf5 {[%clk 0:01:16.4]} 19... Qxf5
{[%clk 0:01:50]} 20. Nxd6 {[%clk 0:01:10]} 20... Bxd6 {[%clk 0:01:37.7]} 21.
Bxd6 {[%clk 0:01:10.9]} 21... Nhf6 {[%clk 0:01:32.3]} 22. Rae1 {[%clk
0:00:59.1]} 22... Rxe2 {[%clk 0:01:27.2]} 23. Rxe2 {[%clk 0:00:41.6]} 23... b5
{[%clk 0:01:26.7]} 24. Bg3 {[%clk 0:00:35.3]} 24... Rf8 {[%clk 0:01:21]} 25.
axb5 {[%clk 0:00:29.2]} 25... axb5 {[%clk 0:01:20.6]} 26. Qc3 {[%clk 0:00:21.7]}
26... Nh5 {[%clk 0:01:17.2]} 27. Qd3 {[%clk 0:00:09.3]} 27... Nxg3 {[%clk
0:01:14.7]} 28. Qxg3 {[%clk 0:00:10.2]} 28... Nf6 {[%clk 0:01:06.9]} 29. d6
{[%clk 0:00:10]} 29... Rd8 {[%clk 0:01:02.7]} 30. Re7 {[%clk 0:00:08.7]} 30...
Nh5 {[%clk 0:01:02.4]} 31. Qd3 {[%clk 0:00:08.2]} 31... Qxd3 {[%clk 0:01:00.8]}
32. cxd3 {[%clk 0:00:08.9]} 32... Rxd6 {[%clk 0:01:01.4]} 33. Be4 {[%clk
0:00:08.1]} 33... c4 {[%clk 0:01:01]} 34. Rb7 {[%clk 0:00:07.9]} 34... cxd3
{[%clk 0:00:55.8]} 35. Bg6 {[%clk 0:00:08.4]} 35... Rd8 {[%clk 0:00:54.9]} 36.
Bxh5 {[%clk 0:00:06.1]} 36... d2 {[%clk 0:00:55.3]} 37. Bd1 {[%clk 0:00:06.7]}
37... Re8 {[%clk 0:00:55.5]} 38. Bb3+ {[%clk 0:00:04.7]} 38... Kh8 {[%clk
0:00:54.7]} 39. Rd7 {[%clk 0:00:05.6]} 39... Re2 {[%clk 0:00:52.7]} 40. Kf1
{[%clk 0:00:05]} 40... Re1+ {[%clk 0:00:52.6]} 41. Kg2 {[%clk 0:00:05.6]} 41...
Re2 {[%clk 0:00:52.3]} 42. Rd3 {[%clk 0:00:05.6]} 42... Re1 {[%clk 0:00:52.1]}
43. Rxd2 {[%clk 0:00:05.6]} 43... Re5 {[%clk 0:00:49.4]} 44. Bc2 {[%clk
0:00:06.1]} 44... Kg8 {[%clk 0:00:48.6]} 45. Rd7 {[%clk 0:00:06.3]} 45... Kf8
{[%clk 0:00:48.4]} 46. Bd3 {[%clk 0:00:04.5]} 46... b4 {[%clk 0:00:47.9]} 47. f4
{[%clk 0:00:05]} 47... Rc5 {[%clk 0:00:46.1]} 48. Kf3 {[%clk 0:00:05]} 48... Rc1
{[%clk 0:00:41.9]} 49. Rd4 {[%clk 0:00:05.1]} 49... b3 {[%clk 0:00:40.8]} 50.
Rb4 {[%clk 0:00:05]} 50... Rh1 {[%clk 0:00:40.1]} 51. Rxb3 {[%clk 0:00:04.3]}
51... Rxh3+ {[%clk 0:00:40.1]} 52. Ke4 {[%clk 0:00:05]} 52... Rh1 {[%clk
0:00:39.2]} 53. Rb7 {[%clk 0:00:05.5]} 53... Re1+ {[%clk 0:00:38.3]} 54. Kf5
{[%clk 0:00:05.6]} 54... Rd1 {[%clk 0:00:36.1]} 55. Be4 {[%clk 0:00:05.8]} 55...
Rd2 {[%clk 0:00:31.7]} 56. b4 {[%clk 0:00:05.4]} 56... Rd4 {[%clk 0:00:30.4]}
57. b5 {[%clk 0:00:05.6]} 57... g6+ {[%clk 0:00:30.3]} 58. Ke5 {[%clk
0:00:05.4]} 58... Rb4 {[%clk 0:00:28.7]} 59. Bxg6 {[%clk 0:00:05.5]} 59... Rb1
{[%clk 0:00:27.5]} 60. Be4 {[%clk 0:00:05.7]} 60... Re1 {[%clk 0:00:26.2]} 61.
b6 {[%clk 0:00:05.8]} 1-0

[Event "*** Titled Tuesday Blitz"]
[Site "Chess.com"]
[Date "2021.03.09"]
[Round "2"]
[White "Leo_C"]
[Black "tdf98pantani"]
[Result "0-1"]
[WhiteElo "2443"]
[BlackElo "2671"]
[TimeControl "180+1"]
[EndTime "10:20:02 PST"]
[Termination "tdf98pantani won by resignation"]

1. d4 {[%clk 0:03:00.9]} 1... Nf6 {[%clk 0:02:57.6]} 2. c4 {[%clk 0:02:59.3]}
2... e6 {[%clk 0:02:57.8]} 3. Nc3 {[%clk 0:02:58.3]} 3... d5 {[%clk 0:02:57.8]}
4. cxd5 {[%clk 0:02:57.9]} 4... exd5 {[%clk 0:02:57.7]} 5. Bg5 {[%clk 0:02:57]}
5... c6 {[%clk 0:02:55.6]} 6. e3 {[%clk 0:02:56.8]} 6... Be7 {[%clk 0:02:53.9]}
7. Bd3 {[%clk 0:02:55.9]} 7... Nbd7 {[%clk 0:02:53.7]} 8. Nge2 {[%clk
0:02:55.8]} 8... Nf8 {[%clk 0:02:51.2]} 9. Bh4 {[%clk 0:02:52.9]} 9... Ne6
{[%clk 0:02:50.8]} 10. O-O {[%clk 0:02:52]} 10... O-O {[%clk 0:02:48.8]} 11. f3
{[%clk 0:02:50.5]} 11... b5 {[%clk 0:02:44.1]} 12. a3 {[%clk 0:02:48.7]} 12...
Bb7 {[%clk 0:02:42.3]} 13. Qc2 {[%clk 0:02:45.3]} 13... g6 {[%clk 0:02:41.8]}
14. Bf2 {[%clk 0:02:42.4]} 14... a6 {[%clk 0:02:39.1]} 15. b4 {[%clk 0:02:39]}
15... a5 {[%clk 0:02:38.5]} 16. Rab1 {[%clk 0:02:33.5]} 16... Bd6 {[%clk
0:02:06.3]} 17. h3 {[%clk 0:02:29.4]} 17... Qe7 {[%clk 0:02:01.6]} 18. e4 {[%clk
0:02:08.4]} 18... axb4 {[%clk 0:02:00]} 19. axb4 {[%clk 0:01:56.4]} 19... Bxb4
{[%clk 0:01:56]} 20. Bh4 {[%clk 0:01:47.4]} 20... Bxc3 {[%clk 0:01:53.9]} 21.
Qxc3 {[%clk 0:01:42.5]} 21... Nxe4 {[%clk 0:01:34]} 22. Bxe7 {[%clk 0:01:39.2]}
22... Nxc3 {[%clk 0:01:33.8]} 23. Nxc3 {[%clk 0:01:40.1]} 23... Rfe8 {[%clk
0:01:26.3]} 24. Bf6 {[%clk 0:01:32.3]} 24... Ra3 {[%clk 0:01:24.6]} 25. Rfc1
{[%clk 0:01:28.6]} 25... Nf4 {[%clk 0:01:12.8]} 26. Bf1 {[%clk 0:01:22.4]} 26...
Nh5 {[%clk 0:00:54.6]} 27. Be5 {[%clk 0:01:14.3]} 27... f6 {[%clk 0:00:52.1]}
28. Bd6 {[%clk 0:01:13]} 28... Raa8 {[%clk 0:00:52.1]} 29. Ra1 {[%clk
0:01:11.2]} 29... Ng7 {[%clk 0:00:52]} 30. g4 {[%clk 0:01:01]} 30... Ne6 {[%clk
0:00:50.3]} 31. Bc5 {[%clk 0:01:00.1]} 31... Nxc5 {[%clk 0:00:46.3]} 32. dxc5
{[%clk 0:01:00.1]} 32... Rxa1 {[%clk 0:00:32.3]} 33. Rxa1 {[%clk 0:00:58.8]}
33... Re3 {[%clk 0:00:32.5]} 34. Nd1 {[%clk 0:00:43.1]} 34... Re7 {[%clk
0:00:32.6]} 35. Ra7 {[%clk 0:00:40.5]} 35... Kf7 {[%clk 0:00:32]} 36. Kf2 {[%clk
0:00:36]} 36... d4 {[%clk 0:00:31.2]} 37. Nb2 {[%clk 0:00:33.2]} 37... Ke6
{[%clk 0:00:31.5]} 38. Nd3 {[%clk 0:00:22.1]} 38... Kd5 {[%clk 0:00:31.9]} 39.
Be2 {[%clk 0:00:21]} 39... Kc4 {[%clk 0:00:20.4]} 40. Ra2 {[%clk 0:00:10.3]}
40... Kc3 {[%clk 0:00:19.2]} 41. Ra3+ {[%clk 0:00:10.1]} 41... Kc4 {[%clk
0:00:19.2]} 42. Ra2 {[%clk 0:00:10.1]} 42... Bc8 {[%clk 0:00:18]} 43. Rc2+
{[%clk 0:00:10.1]} 43... Kb3 {[%clk 0:00:17.8]} 44. Rb2+ {[%clk 0:00:10.4]}
44... Kc3 {[%clk 0:00:17.7]} 45. Ra2 {[%clk 0:00:10.8]} 45... Be6 {[%clk
0:00:18]} 46. Ra6 {[%clk 0:00:10.6]} 46... Bd5 {[%clk 0:00:17.8]} 47. Ra3+
{[%clk 0:00:09.1]} 47... Kc2 {[%clk 0:00:16.2]} 48. Nb4+ {[%clk 0:00:09.1]}
48... Kb2 {[%clk 0:00:16.7]} 49. Rd3 {[%clk 0:00:09]} 49... Bc4 {[%clk
0:00:16.2]} 50. Rd2+ {[%clk 0:00:09.4]} 50... Kc3 {[%clk 0:00:16.6]} 51. Rc2+
{[%clk 0:00:07.5]} 51... Kb3 {[%clk 0:00:16.6]} 52. Bxc4+ {[%clk 0:00:07.4]}
52... bxc4 {[%clk 0:00:16.8]} 53. Rd2 {[%clk 0:00:05.3]} 53... Kxb4 {[%clk
0:00:16.1]} 54. Rxd4 {[%clk 0:00:05.5]} 54... Kxc5 {[%clk 0:00:15.5]} 55. Rf4
{[%clk 0:00:06.2]} 55... Re6 {[%clk 0:00:15.1]} 56. h4 {[%clk 0:00:06.6]} 56...
c3 {[%clk 0:00:15.4]} 57. g5 {[%clk 0:00:06.9]} 57... f5 {[%clk 0:00:15]} 58. h5
{[%clk 0:00:06.8]} 58... c2 {[%clk 0:00:15.3]} 0-1